Cogmind - Beta 14 @@@ ROGUE MODE // 2024.10.08 @ 13:35:09 // Winter2019/RPGLIKE Player: Delirus Result: Self-destructed Performance ------------- Evolutions (0) 0 Regions Visited (4) 800 Robots Destroyed (55) 275 Value Destroyed (1471) 1471 Prototype IDs (25) 500 Alien Tech Used (0) 0 Bonus (273) 273 TOTAL SCORE: 3319 Bonus ------- Registered with UFD 300 Friendly Fire -27 Cogmind --------- Core Integrity 546/600 Matter 230/300 Energy 115/275 System Corruption 1% Temperature Warning (309) Movement Walking (95) Location -8/Scraptown Parts ------- > --- POWER (1) -------- Deuterium Engine > --- PROPULSION (2) --- Overtuned Titanium Leg Overtuned Flexi-carbon Leg > --- UTILITY (5) ------ Scrap Suit Experimental Signal Interpreter Improved Shield Generator > --- WEAPON (2) ------- Overtuned Quantum Rifle > --- INVENTORY (3) ---- Improved Grenade Launcher CPS Tube (2) Heavy Mace Peak State ------------ > --- POWER ------------ Deuterium Engine > --- PROPULSION ------- Improved Carbon-fiber Leg Overtuned Huge Scrapsphere > --- UTILITY ---------- Experimental Signal Interpreter Reaction Control System Tower Shield Improved Shield Generator > --- WEAPON ----------- Overtuned Quantum Rifle Battle Rifle Gauss Rifle > --- INVENTORY -------- Improved Grenade Launcher CPS Tube Heavy Mace [Rating: 68] Favorites ----------- Power Ion Engine Engine Ion Engine Propulsion Makeshift Leg Treads Spiked Treads Leg Makeshift Leg Wheel Compact Wheel Utility Scrap Shield Device Disposable Heat Sink Processor Experimental Signal Interpreter Protection Scrap Shield Weapon Battle Rifle Energy Gun Subdweller Laser Energy Cannon Subdweller Beam Cannon Ballistic Gun Battle Rifle Ballistic Cannon Battle Cannon Launcher Subdweller Shrapnel Launcher Special Weapon Mining Laser Build | -11 -10 -10 -8 -8 ------- Run | Yrd Mat Sub Rec Scr Slots Evolved 6 | 3 . 1 1 1 Power . | . . . . . Propulsion 1 | 1 . . . . Utility 4 | 1 . 1 1 1 Weapon 1 | 1 . . . . Parts Attached 49 | 5 9 18 5 12 Power 2 | 1 . . . 1 Engine 2 | 1 . . . 1 Core . | . . . . . Reactor . | . . . . . Propulsion 10 | 2 . 3 . 5 Treads 2 | 1 . 1 . . Leg 6 | . . 2 . 4 Wheel 2 | 1 . . . 1 Hover . | . . . . . Flight . | . . . . . Utility 10 | 1 . 4 1 4 Device 6 | 1 . 1 1 3 Storage . | . . . . . Processor 1 | . . . . 1 Hackware . | . . . . . Protection 3 | . . 3 . . Artifact . | . . . . . Weapon 27 | 1 9 11 4 2 Energy Gun 10 | . 5 3 1 1 Energy Cannon 3 | . . 2 . 1 Ballistic Gun 7 | 1 . 3 3 . Ballistic Cannon 2 | . . 2 . . Launcher 1 | . . 1 . . Special Weapon 4 | . 4 . . . Impact Weapon . | . . . . . Slashing Weapon . | . . . . . Piercing Weapon . | . . . . . Special Melee Weapon . | . . . . . Unidentified Prototypes . | . . . . . Parts Lost . | . . . . . Power . | . . . . . Propulsion . | . . . . . Utility . | . . . . . Weapon . | . . . . . Highest Loss Streak . | . . . . . To Critical Strikes . | . . . . . Average Slot Usage (%) 73 | . 85 75 65 70 Engine 8 | . 14 9 6 6 Treads 2 | . 14 3 . . Leg 13 | . . 11 13 17 Wheel 2 | . 14 3 . . Device 11 | . 14 9 11 14 Protection 11 | . . 12 13 11 Energy Gun 5 | . 12 9 2 . Energy Cannon 5 | . . 8 . 3 Ballistic Gun 9 | . 11 3 13 15 Peak Build Rating 68 | 6 6 41 47 68 Average Rating 36 | 4 6 27 43 52 On Entrance 20 | 3 6 6 41 47 Naked Turns . | . . . . . Heaviest Build 82 | 9 10 80 74 82 Greatest Support 61 | 20 16 40 40 61 Greatest Overweight (x) 3 | . . 2 1 3 Average Overweight (x) 1 | . . 1 1 1 Largest Inventory Capacity 3 | 1 1 1 2 3 Average Capacity 1 | . 1 1 1 2 Most Carried 3 | 1 1 1 2 3 Average Carried 1 | . 1 . 1 2 Final Capacity 3 | 1 1 1 2 3 Final Carried 3 | 1 1 1 2 3 Class Distribution -------------------- 24% | Subdweller-Mutant 15% | Derelict-Tank 15% | Scavenger-Gunner 12% | Subdweller-Gunner 11% | Derelict-Gunner 7% | Scavenger-Tank 7% | Mutant Dominant Class ---------------- Mutant | -10/Materials Subdweller-Mutant | -10/Subcaves Scavenger-Gunner | -8/Recycling Derelict-Tank | -8/Scraptown Resources | -11 -10 -10 -8 -8 ----------- Run | Yrd Mat Sub Rec Scr Matter Collected 1384 | 224 84 593 373 110 Remotely . | . . . . . Salvage Created 2416 | 24 168 824 1400 . Parts 147 | 3 25 64 55 . Haulers Intercepted 1 | . 1 . . . Recyclers Shooed 5 | . . . 5 . Parts Field Recycled . | . . . . . Retrieved Matter . | . . . . . Parts Self-Destructed 17 | . . 17 . . Prevented . | . . . . . Kills | -11 -10 -10 -8 -8 ------- Run | Yrd Mat Sub Rec Scr Combat Hostiles Destroyed 38 | . 8 22 8 . Guns 22 | . 8 9 5 . Cannons 15 | . . 12 3 . Classes Destroyed 12 | 1 5 3 3 . Worker 1 | . 1 . . . Builder 1 | . 1 . . . Tunneler 1 | 1 . . . . Hauler 1 | . 1 . . . Recycler 11 | . . . 11 . Turret 2 | . . 2 . . Swarmer 9 | . 6 2 1 . Grunt 5 | . 2 1 2 . Brawler 1 | . . . 1 . Sentry 3 | . . 1 2 . Programmer 2 | . . . 2 . Subdweller 18 | . . 18 . . Best Kill Streak 7 | 1 4 7 4 . Combat Bots Only 7 | . 3 7 4 . Max Kills in Single Turn 2 | 1 1 2 2 . Gunslinging . | . . . . . Exploded . | . . . . . Melee . | . . . . . Uniques/NPCs Destroyed . | . . . . . Combat | -11 -10 -10 -8 -8 -------- Run | Yrd Mat Sub Rec Scr Hostile Shots Fired 179 | . 38 118 8 15 Missed 51 | . 6 37 2 6 Damage Taken 1807 | . 265 1405 70 67 Core 1008 | . 215 710 29 54 Absorbed by Shields 49 | . . . 24 25 Redirected to Core 820 | . 159 593 29 39 Ignored by Resistances 143 | . 12 121 2 8 Core Remaining (%) 100 | 100 . . . . Volleys Fired 212 | 5 42 126 35 4 Largest 3 | 2 2 3 3 1 Hottest 200 | 70 100 200 124 120 Shots Fired 475 | 8 68 290 104 5 Gun 307 | 8 52 156 86 5 Cannon 149 | . . 131 18 . Launcher 3 | . . 3 . . Special 16 | . 16 . . . Kinetic 210 | 3 24 87 96 . Thermal 265 | 5 44 203 8 5 Explosive . | . . . . . Electromagnetic . | . . . . . Robot Hit Streak 19 | 2 16 19 16 3 Robot Miss Streak 3 | 3 2 3 2 1 Penetration Max 1 | . . . 1 . Secondary Targets 2 | . 2 . . . Max Gunslinging Chain 1 | . 1 . . . Shots Hit Robots 200 | 3 31 101 62 3 Core Hits 85 | 3 15 36 31 . Critical Kills 2 | . . 2 . . Critical Parts Destroyed 2 | . . 2 . . Critical Strikes 9 | . . 8 1 . Burn 3 | . . 3 . . Meltdown 1 | . . 1 . . Destroy 3 | . . 3 . . Blast 2 | . . 1 1 . Melee Attacks . | . . . . . Impact . | . . . . . Slashing . | . . . . . Piercing . | . . . . . Sneak Attacks . | . . . . . Combat Hostiles . | . . . . . Follow-up Attacks . | . . . . . Damage Inflicted 4059 | 24 344 2353 1278 60 Guns 2633 | 24 344 1271 934 60 Cannons 1273 | . . 931 342 . Explosions 151 | . . 151 . . Melee . | . . . . . Ramming 2 | . . . 2 . Kinetic 1934 | 12 82 644 1196 . Thermal 2123 | 12 262 1709 80 60 Explosive . | . . . . . Electromagnetic . | . . . . . Impact . | . . . . . Slashing . | . . . . . Piercing . | . . . . . Highest Corruption 1 | . . . 1 1 Average Corruption 1 | . . . 1 1 Corruption Purged . | . . . . . Corruption Blocked . | . . . . . Effects 27 | . . . 5 22 Message Errors 7 | . . . 2 5 Matter Fused 6 | . . . 1 5 Heat Flow Errors 2 | . . . . 2 Energy Discharges 4 | . . . . 4 Data Loss (minor) 3 | . . . 1 2 Data Loss (major) 1 | . . . . 1 Misfires 1 | . . . . 1 Alerts 3 | . . . 1 2 Overload Shots . | . . . . . Overflow Damage 21 | . . . 21 . Projectiles 21 | . . . 21 . Explosions . | . . . . . Melee . | . . . . . Knockbacks 6 | . . 3 3 . Impact . | . . . . . Kinetic 6 | . . 3 3 . Secondary . | . . . . . Self-Inflicted Damage 8 | . . 8 . . Shots 1 | . . 1 . . Rammed . | . . . . . Targets Rammed 1 | . . . 1 . Kicked 1 | . . . 1 . Crushed . | . . . . . Highest Temperature 300 | 40 60 191 27 300 Average Temperature 39 | 16 11 52 17 106 Received Heat Transfer 270 | . 42 213 6 9 Siege Activations . | . . . . . Robots Corrupted . | . . . . . Combat Hostiles . | . . . . . Parts Fried . | . . . . . Impact Corruptions . | . . . . . Robots Melted 1 | . . 1 . . Combat Hostiles 1 | . . 1 . . Parts Melted 2 | . 1 1 . . Heat Transferred 3651 | 37 777 2613 124 100 Parts Sabotaged . | . . . . . Parts Stolen 2 | . . . . 2 Parts Stripped . | . . . . . Power Chain Reactions . | . . . . . Alert | -11 -10 -10 -8 -8 ------- Run | Yrd Mat Sub Rec Scr Peak Influence 298 | 5 249 . 298 . Initial 87 | . 3 . 87 . Average 114 | 1 99 . 126 . Maximum Alert Level 1 | . 1 . 1 . Low Security (%) 80 | 100 87 . 76 . Level 1 19 | . 12 . 23 . Level 2 . | . . . . . Level 3 . | . . . . . Level 4 . | . . . . . Level 5 . | . . . . . High Security . | . . . . . Max Security . | . . . . . Squads Dispatched . | . . . . . Investigation . | . . . . . Extermination . | . . . . . Reinforcement . | . . . . . Assault . | . . . . . Garrison . | . . . . . Intercept . | . . . . . Searches Triggered . | . . . . . Construction Impeded . | . . . . . Haulers Reinforced . | . . . . . Active Scanning Responses . | . . . . . Cargo Convoy Interrupts . | . . . . . Stealth | -11 -10 -10 -8 -8 --------- Run | Yrd Mat Sub Rec Scr Distress Signals 2 | . 2 . . . Communications Jammed . | . . . . . Distress Signals . | . . . . . Times Spotted 64 | . 15 38 4 7 Peak Tracking Total 8 | . 5 7 1 8 Tactical Retreats 3 | . . 3 . . Traps | -11 -10 -10 -8 -8 ------- Run | Yrd Mat Sub Rec Scr Traps Triggered 4 | . . 4 . . Indirectly . | . . . . . Trap Hack Attempts . | . . . . . Triggered . | . . . . . Disarmed . | . . . . . Reprogrammed . | . . . . . Reused . | . . . . . Traps Extracted . | . . . . . Installed . | . . . . . Triggered . | . . . . . Machines | -11 -10 -10 -8 -8 ---------- Run | Yrd Mat Sub Rec Scr Machines Disabled 6 | . 1 3 1 1 Max in Single Turn 1 | . 1 1 1 1 Machines Repaired . | . . . . . Machines Dismantled . | . . . . . Machines Sabotaged . | . . . . . Overloaded Fab Kills . | . . . . . Hacking | -11 -10 -10 -8 -8 --------- Run | Yrd Mat Sub Rec Scr Machines Accessed 21 | . 5 1 9 6 Terminals 8 | . 5 . 3 . Fabricators . | . . . . . Repair Stations . | . . . . . Recycling Units 5 | . . . 5 . Scanalyzers . | . . . . . Garrison Access . | . . . . . Total Hacks 73 | . 20 9 19 25 Successful 54 | . 9 9 11 25 Failed 19 | . 11 . 8 . Catastrophic 4 | . 1 . 3 . Database Lockouts . | . . . . . Manual 22 | . 9 . 13 . Terminals 33 | . 20 . 13 . Fabricators . | . . . . . Repair Stations . | . . . . . Recycling Units 5 | . . . 5 . Scanalyzers . | . . . . . Garrison Access . | . . . . . Terminal Hacks 46 | . 6 9 6 25 Record 28 | . . 8 1 19 Robot Analysis 5 | . . . . 5 Prototype ID Bank 1 | . . . 1 . Branch Access Points 1 | . . . 1 . Emergency Access Points 2 | . 2 . . . Unreport Threat 1 | . . . 1 . Locate Traps 1 | . 1 . . . Zone Layout 5 | . 3 . 2 . Derelict Proto ID Bank 2 | . . 1 . 1 Fabricator Hacks . | . . . . . Repair Station Hacks . | . . . . . Recycling Unit Hacks . | . . . . . Scanalyzer . | . . . . . Garrison Access Hacks . | . . . . . Unauthorized Hacks 8 | . 3 . 5 . Terminals 3 | . 3 . . . Track 1 | . 1 . . . Botnet 1 | . 1 . . . Operators 1 | . 1 . . . Fabricators . | . . . . . Repair Stations . | . . . . . Recycling Units 5 | . . . 5 . Tunnel 5 | . . . 5 . Scanalyzers . | . . . . . Garrison Access . | . . . . . Data Cores Recovered . | . . . . . Used . | . . . . . Hacking Detections 8 | . 5 . 3 . Full Trace Events 3 | . . . 3 . Feedback Events . | . . . . . Feedback Blocked . | . . . . . Robot Schematics Acquired . | . . . . . Robots Built . | . . . . . Authchips . | . . . . . Time . | . . . . . Total Robot Build Rating . | . . . . . Part Schematics Acquired . | . . . . . Parts Built . | . . . . . Authchips . | . . . . . Time . | . . . . . Total Part Build Rating . | . . . . . Parts Repaired . | . . . . . Time . | . . . . . Parts Recycled . | . . . . . Recycled Matter . | . . . . . Retrieved Matter . | . . . . . Retrieved Components . | . . . . . Parts Scanalyzed . | . . . . . Part Schematics Acquired . | . . . . . Parts Damaged . | . . . . . Bothacking | -11 -10 -10 -8 -8 ------------ Run | Yrd Mat Sub Rec Scr Used RIF Installer . | . . . . . Robots Hacked . | . . . . . Non-combat . | . . . . . Combat . | . . . . . Robot Hacks Applied . | . . . . . Relay Couplers Released . | . . . . . Fabnet Peak Effective % . | . . . . . Robots Rewired . | . . . . . Allies Hacked . | . . . . . Hacks Repelled . | . . . . . Allies | -11 -10 -10 -8 -8 -------- Run | Yrd Mat Sub Rec Scr Total Allies . | . . . . . Largest Group . | . . . . . Highest-Rated Group . | . . . . . Highest-Rated Ally . | . . . . . Total Orders . | . . . . . Ally Attacks . | . . . . . Total Damage . | . . . . . Kills . | . . . . . Allies Corrupted . | . . . . . Allies Melted . | . . . . . Intel | -11 -10 -10 -8 -8 ------- Run | Yrd Mat Sub Rec Scr Robot Analysis Total 5 | . . . . 5 Derelict Logs Recovered 5 | . . 3 . 2 Drone Launches . | . . . . . Drone Recoveries . | . . . . . Exploration | -11 -10 -10 -8 -8 ------------- Run | Yrd Mat Sub Rec Scr Turns Passed 8904 | 42 518 4064 989 3291 Spaces Moved 4548 | 15 344 2221 393 1575 Core . | . . . . . Treads 7 | 7 . . . . Legs 3304 | 3 . 1334 393 1574 Wheels 1237 | 5 344 887 . 1 Hover . | . . . . . Flight . | . . . . . Fastest Speed 95 | 100 100 100 210 95 Average Speed 176 | 132 100 160 210 206 Slowest Speed 280 | 160 100 210 210 280 Overloaded Moves . | . . . . . Propulsion Burnouts . | . . . . . Robots Hopped . | . . . . . Cave-ins Triggered . | . . . . . Exploration Rate (%) 62 | 2 73 85 64 90 Regions Visited 4 Branch Regions 3 Pre-discovered Areas 7 | . . 1 5 1 Known Exits Taken . | . . . . . Unknown Exits Taken 4 | 1 1 1 1 . Scrap Searched 18 | . . 8 . 10 Spaces Dug 37 | . 7 30 . . Terrain Destroyed 133 | . 11 118 2 2 Melee . | . . . . . Projectile 82 | . 11 67 2 2 AOE 51 | . . 51 . . Terrain Rammed . | . . . . . Walls Destroyed . | . . . . . Machines Disabled . | . . . . . Actions | -11 -10 -10 -8 -8 --------- Run | Yrd Mat Sub Rec Scr Total 4999 | 29 418 2463 481 1608 Wait 51 | . 13 31 7 . Move 4544 | 14 343 2220 392 1575 Hop . | . . . . . Pick Up 11 | 2 . 4 1 4 Fast Attach 35 | 4 1 15 4 11 Attach . | . . . . . Detach . | . . . . . Swap 14 | 1 8 3 1 1 Drop 37 | 3 1 16 4 13 Fire 212 | 5 42 126 35 4 Melee . | . . . . . Ram . | . . . . . Kick 1 | . . . 1 . Crush . | . . . . . Escape Stasis . | . . . . . Rewire 1 | . . . 1 . Trap . | . . . . . Miscellaneous 93 | . 10 48 35 . Route ------- -11/Scrapyard -10/Materials (discovered 5 exits: [*Mat x3] / [*Min] / *Sub) -10/Subcaves (discovered 3 exits: [*Mat x2] / *Rec) -8/Recycling -8/Scraptown (discovered 1 exit: [*Fac]) History --------- Turn | Location | Event 1 | -11/Scrapyard | Upgraded with Utility slot (x1) 1 | -11/Scrapyard | Upgraded with Weapon slot (x1) 1 | -11/Scrapyard | Discovered new exit (range 1) 15 | -11/Scrapyard | Upgraded with Propulsion slot (x1) 43 | -11/Scrapyard | Entered Materials 167 | -10/Materials | Discovered new exit (range 11) 317 | -10/Materials | Build established: Mutant 409 | -10/Materials | Discovered new exit (range 14) 425 | -10/Materials | Discovered new exit (range 13) 488 | -10/Materials | Discovered new exit (range 16) 540 | -10/Materials | Discovered new exit (range 15) 561 | -10/Materials | Entered Subcaves 563 | -10/Subcaves | Reached level 2 567 | -10/Subcaves | Upgraded with Utility slot (x1) 596 | -10/Subcaves | Ambushed by Subdweller buried in earth 694 | -10/Subcaves | Shifting Twisted Machinery released Battle Rifle 699 | -10/Subcaves | Shifting Twisted Machinery released Sub. Shrapnel Launcher 699 | -10/Subcaves | Ambushed by swarm of Subdwellers 699 | -10/Subcaves | Ambushed by Subdwellers from Twisted Machinery 700 | -10/Subcaves | Ambushed by Subdwellers from Twisted Machinery 700 | -10/Subcaves | Ambushed by Subdwellers from Twisted Machinery 721 | -10/Subcaves | Ambushed by Subdwellers from Twisted Machinery 751 | -10/Subcaves | Destroyed 7 combat bots 1059 | -10/Subcaves | Build established: Subdweller-Mutant 1251 | -10/Subcaves | Discovered new exit (range 6) 1601 | -10/Subcaves | Learned location of Zion (-7) 1660 | -10/Subcaves | Discovered new exit (range 8) 1668 | -10/Subcaves | Shifting Twisted Machinery released Sub. Optics 1756 | -10/Subcaves | Learned location of 1 exit from Materials 1764 | -10/Subcaves | Shifting Twisted Machinery released Sub. Monowheel 1781 | -10/Subcaves | Ambushed by Subdwellers from Twisted Machinery 1925 | -10/Subcaves | A swath of the cavern ceiling suddenly collapsed 2697 | -10/Subcaves | Visited 4L-MR0's lab 2714 | -10/Subcaves | Found Tower Shield 2716 | -10/Subcaves | Attached Tower Shield, gained temporary slots: Power, Propulsion x2, Utility x2, Weapon x2 3085 | -10/Subcaves | Build established: Subdweller-Gunner 3733 | -10/Subcaves | A swath of the cavern ceiling suddenly collapsed 4322 | -10/Subcaves | Discovered new exit (range 11) 4382 | -10/Subcaves | Build established: Scavenger-Gunner 4526 | -10/Subcaves | Ambushed by Subdweller buried in earth 4528 | -10/Subcaves | Ambushed by Subdweller buried in earth 4625 | -10/Subcaves | Entered Recycling 4627 | -8/Recycling | Reached level 3 4863 | -8/Recycling | Reached level 4 4883 | -8/Recycling | Upgraded with Utility slot (x1) 5199 | -8/Recycling | Build established: Derelict-Gunner 5559 | -8/Recycling | Build established: Scavenger-Gunner 5562 | -8/Recycling | Scanned before Scraplab entrance 5591 | -8/Recycling | Entered Scraplab 5610 | -8/Recycling | Discovered new exit (range 3) 5614 | -8/Recycling | Entered Scraptown 5736 | -8/Scraptown | Heard Great Nut preacher, LISTEN AND RECITE! 6102 | -8/Scraptown | Scanned Subdweller tech in exchange for log data 6109 | -8/Scraptown | Learned 12 Research zone layouts 6142 | -8/Scraptown | Discovered new exit (range 5) 6146 | -8/Scraptown | Build established: Scavenger-Tank 6342 | -8/Scraptown | Visited TADAMA 6407 | -8/Scraptown | Visited Spacefarers 6518 | -8/Scraptown | Visited Bundlers 6708 | -8/Scraptown | Visited Cyclists 6825 | -8/Scraptown | Visited CPS Storage 6858 | -8/Scraptown | Build established: Derelict-Tank 6885 | -8/Scraptown | Visited UFD Registry 6885 | -8/Scraptown | Registered with UFD as "Autotail" 6885 | -8/Scraptown | Reached level 5 6975 | -8/Scraptown | Entered Cyclist Reading Room 7548 | -8/Scraptown | Visited SPCMW 7706 | -8/Scraptown | Visited DA-N13 Charitable Foundation 7729 | -8/Scraptown | Found DCF Scrap (28 items) 7789 | -8/Scraptown | Visited Junk Cannon Lab 7849 | -8/Scraptown | Visited Observation Area 7961 | -8/Scraptown | Delivered Scrap Shield to a Scientist 8209 | -8/Scraptown | Visited Science Guys 8251 | -8/Scraptown | Build established: Derelict-Gunner 8304 | -8/Scraptown | Visited Scrap Suit Storage 8361 | -8/Scraptown | Visited Analyses Database 8408 | -8/Scraptown | Visited Derelict Rescue Squad 8479 | -8/Scraptown | Visited Botcube Research 8538 | -8/Scraptown | Visited Infowarlord's Domain 8552 | -8/Scraptown | Upgraded with Utility slot (x1) 8552 | -8/Scraptown | Found Exp. Signal Interpreter 8594 | -8/Scraptown | Visited Modified Component R&D 8797 | -8/Scraptown | Found Scrap Suit 8890 | -8/Scraptown | Attacked by Scraptown defenders 8905 | -8/Scraptown | Self-destructed Last Messages --------------- 08749_ X13B7U>Q1H,6/VEXZVFL7L0GD8WLPG 08755_ Ovr. Titanium Leg recovered from malfunction. 08792_ Ovr. Titanium Leg suddenly begins malfunctioning. 08794_ Discarded Tower Shield. 08794_ Temporary Power slot lost. 08794_ Temporary Propulsion slot lost. 08794_ Temporary Weapon slot lost. 08797_ Acquired Scrap Suit. 08798_ Ovr. Titanium Leg recovered from malfunction. 08842_ A sign before the barrier simply reads "NO DIGGING". 08890_ System corrupted: FCS attempts to trigger Ovr. Quantum Rifle. 08890_ System corrupted: Ovr. Quantum Rifle misfires. 08890_ ANNOUNCEMENT: Intruder alert! Defend Scraptown! 08890_ Machine disabled. 08899_ Gauss Rifle ripped off. 08901_ Destroyed Ripteeth. 08904_ Supplies damaged. 08904_ Penetrated by Slug. 08905_ YY-4Q8(r) follow-up attacks with Ripteeth. 08905_ Reaction Control System ripped off. Map ----- +----------------------------------------------------+ | #???#" ## # #????????????????????? | | ##???###### ##### ## #######????????????????????? | | ########### ##### ## ##########?????????????????? | | """"""""""" """"" "" "## """"#?????????????????? | | "## """"#?????????????????? | | "## " "#?????????????????? | | "## ""#?????????????????? | | "## "#?????????????????? | | X"#?????????????????? | | """"""""""""""""" "## " "#?????????????????? | | """"""""""""""""" "## """"#?????????????????? | | ###############"" "#########?????????????????? | | ?????????????#"" "#############?????????????? | | ?????????????#"" "## #"""""#""#?????????????? | | " ????????????#"" "## !!! !#?????????????? | | "???????????###"" "## #?????????????? | | ?????######## #"" "## #?????????????? | | ? [= X" #?????????????? | | ? "## ##"#?????????????? | | ????######### #"" "## ! !!!#????????????????? | | ????????????###"" "## #"""""#????????????????? | | "?????????????#"" "##########????????????????? | | ?????????????#"" "#?????????????????????????? | | ??????????????#"" "##############????????????? | | ###############" ## """""""""#????????????? | | """"""""""""""""" E"#r@ """"" """#????????????? | | """"""""""""""""" rj xE "" """#????????????? | | "## "c ""#????????????? | | "## c c c ""#????????????? | | "## "" "#????????????? | | ## "" c X"#????????????? | | # """ "#????????????? | | " """"""""""" """""" ## "|"""#????????????? | | # ########### ###### ## "" """"""#????????????? | | # #?# ## "& """"""#????????????? | | #"" #?# ##;###########????????????? | | #" "#?# #?#???????????????????????? | | #"| """#" """"" "#?# #?????????????????????????? | | #" "#" "???" "#?# #?????????????????????????? | | #" ""#" "???" "#?# ############??????????????? | | #" ""#" "???" "#?# #??????????????? | | #" ""#" "???" "#?# ##??????????????? | | #" ""#" """"" "#?# #??????????????? | | #""""""#" "#?# #??????????????? | | #""""""#"""""""""#?# #??????????????? | | ##################?# ############??????????????? | | #################### #####?????????????????????? | | #"""##"""##"""##"|"# """"#?????????????????????? | | #" "##"""##""|##" # "" "#?????????????????????? | | "#?????????????????????? | +----------------------------------------------------+ Best States ------------- Heat Dissipation 37 Coolant Potential 50 Energy Generation 14 Energy Capacity 275 Matter Stores 300 Matter Capacity 300 Sight Range 16 Robot Scan Range 4 Terrain Scan Density 10 Armor Coverage 2800 Resistance: KI 5 Resistance: TH 10 Evasion (%) 64 Recoil Reduction 1 Item Schematics ----------------- None Robot Schematics ------------------ None Fabricated ------------ Nothing Alien Tech Used ----------------- None Achievements -------------- None Challenges ------------ None RPGLIKE | -11 -10 -10 -8 -8 --------- Run | Yrd Mat Sub Rec Scr Levels Raised 4 | . . 1 2 1 XP Earned 9030 | 3000 1040 1650 2690 650 XP Spent 8995 | 1750 1220 1450 2300 2275 Upgrades 21 | 4 6 3 4 4 Propulsion Slot 1 | 1 . . . . Utility Slot 4 | 1 . 1 1 1 Weapon Slot 1 | 1 . . . . Heat Dissipation 2 | . 2 . . . Inventory Capacity 3 | 1 . . 1 1 Sensor Range 2 | . . . . 2 Ranged Accuracy 1 | . 1 . . . KI Resistance % 1 | . . 1 . . TH Resistance % 2 | . 2 . . . KI Damage % 2 | . . . 2 . TH Damage % 2 | . 1 1 . . Protomatter Created 689 | . 102 331 256 . Integrity Restored 1603 | . 170 721 712 . Core 954 | . 153 606 195 . Parts 649 | . 17 115 517 . Protomatter Decayed 218 | . 44 159 15 . Game ------ Seed HellfireForceMultirail Manual? 0 Play Time 01:29:04 Cumulative 176.5 hours Start 2024.10.08 @ 08:22:56 End 2024.10.08 @ 13:35:09 Sessions 11 Manual Loads 0 Difficulty Rogue Special Mode Winter2019/RPGLIKE Game No. 112 Rogue 112 Adventurer 0 Explorer 0 Win Type - Total 8 Types 7/0/0/1/0/0/0/0/0 Lore% 42 Gallery% 66 Achievement% 63 Wizard Run 0 Options --------- Layout 0 ASCII 0 Keyboard 0 Movement Numpad Keybinds 0 Fullscreen 2 Font 18/SmallcapsGlow Map View 76x50 Zoom Use 0% Tactical HUD 1 Map Filters NONE Filters NONE Steam 1 RUN: cf80845e-871d-4f7d-b81a-89a6bfb9c413